bitfinex-derivatives/quotes_BTCF0:USTF0_20241029
["timestamp","ask_amount","ask_price","bid_price","bid_amount"]
[1730231188932,2.03825462,72845.0,72844.0,0.02451375]
[1730231189132,2.27264,72845.0,72835.0,0.3608]
[1730231189332,0.06865,72836.0,72835.0,0.3608]
[1730231189735,0.06865,72836.0,72835.0,0.38501873]
[1730231190133,0.068658,72828.0,72827.0,0.00205931]
[1730231190334,1.568658,72828.0,72827.0,0.00205931]
[1730231190736,1.91192,72828.0,72827.0,0.02429785]
[1730231190931,1.91192,72828.0,72819.0,0.3608]
[1730231191133,0.26665491,72820.0,72819.0,0.3608]
[1730231191336,0.26665491,72820.0,72819.0,0.38508796]
[1730231191634,0.068665,72820.0,72819.0,0.38508796]
[1730231192236,0.068665,72820.0,72819.0,0.02428796]
[1730231192427,0.068665,72820.0,72811.0,0.3608]
[1730231192631,0.3608,72814.0,72805.0,0.0020601]
[1730231192832,0.3608,72814.0,72792.0,0.3608]
[1730231192833,0.19798991,72806.0,72792.0,0.3608]
[1730231193143,0.19798991,72797.0,72792.0,0.3608]
[1730231193336,0.068687,72797.0,72792.0,0.429491]
[1730231193531,0.3608,72799.0,72792.0,0.429491]
[1730231193732,0.3608,72799.0,72792.0,0.3608]
[1730231193936,0.3608,72799.0,72792.0,0.02492274]
[1730231193937,1.5,72798.0,72792.0,0.02492274]
[1730231194141,0.62748091,72793.0,72786.0,0.3608]
[1730231194331,0.19798991,72787.0,72780.0,0.3608]
[1730231194535,0.19798991,72787.0,72780.0,0.38557186]
[1730231194736,0.19798991,72787.0,72780.0,0.45427486]
[1730231195039,0.068696,72788.0,72783.0,0.0687]
[1730231195232,0.48328,72793.0,72781.0,0.19798991]
[1730231195433,0.68126991,72793.0,72780.0,0.45571486]
[1730231195743,0.068702,72781.0,72780.0,0.38557186]
[1730231196138,0.068699,72785.0,72780.0,0.38557186]
[1730231196337,0.068696,72788.0,72780.0,0.38557186]
[1730231196637,0.19798991,72791.0,72780.0,0.38557186]
[1730231196842,0.068697,72787.0,72780.0,0.45427486]
[1730231197240,0.068697,72787.0,72782.0,0.068701]
[1730231198042,0.3608,72793.0,72780.0,0.38557186]
[1730231198043,0.068701,72783.0,72780.0,0.38557186]
[1730231198231,0.19798991,72786.0,72780.0,0.38557186]
[1730231198232,0.068702,72782.0,72780.0,0.38557186]
[1730231200237,0.19798991,72786.0,72783.0,0.0687]
[1730231200743,0.068702,72781.0,72780.0,0.38557186]
[1730231200948,0.26669191,72781.0,72780.0,0.38557186]
[1730231201336,0.26669191,72781.0,72780.0,0.02477186]
[1730231201542,0.26669191,72781.0,72778.0,0.00011115]
[1730231201841,0.068703,72780.0,72778.0,0.00011115]
[1730231202344,0.19798991,72781.0,72778.0,0.00011115]
[1730231202345,0.068704,72779.0,72778.0,0.00011115]
[1730231202534,0.068704,72779.0,72778.0,0.02467191]
[1730231202732,0.068704,72779.0,72778.0,0.00011115]
[1730231204843,0.19798991,72781.0,72778.0,0.00011115]
[1730231205044,0.55878991,72785.0,72778.0,0.00011115]
[1730231205347,0.3608,72785.0,72779.0,0.068703]
[1730231205547,1.5,72780.0,72779.0,0.068703]
[1730231208040,0.068694,72790.0,72778.0,0.36091115]
[1730231208346,0.068695,72789.0,72778.0,0.36091115]
[1730231208740,0.13200357,72788.0,72785.0,0.068698]
[1730231209139,1.568697,72787.0,72785.0,0.068698]
[1730231209947,1.568697,72787.0,72786.0,0.068697]
[1730231209948,1.5,72787.0,72786.0,0.068697]
[1730231212550,1.5,72787.0,72786.0,0.09319094]
[1730231214346,0.00206153,72795.0,72794.0,0.06869]
[1730231214551,0.3608,72807.0,72794.0,0.20069357]
[1730231214750,0.13200357,72813.0,72803.0,0.13200357]
[1730231215047,0.13200357,72813.0,72808.0,0.068676]
[1730231215048,0.068673,72812.0,72808.0,0.068676]
[1730231215343,1.5,72809.0,72807.0,0.068677]
[1730231215541,1.5,72809.0,72808.0,0.068677]
[1730231215737,1.70067957,72809.0,72808.0,0.068677]
[1730231215939,1.63200357,72809.0,72801.0,0.3608]
[1730231216138,0.068678,72807.0,72804.0,0.06868]
[1730231216336,0.13200357,72805.0,72804.0,0.06868]
[1730231218842,0.068682,72802.0,72801.0,0.02418981]
[1730231219046,0.06869,72794.0,72786.0,0.04077445]
[1730231219244,0.06869,72794.0,72778.0,0.00011115]
[1730231219245,0.068697,72786.0,72785.0,0.38598927]
[1730231219448,1.568697,72786.0,72785.0,0.38598927]
[1730231220557,1.97483166,72786.0,72785.0,0.38598927]
[1730231221449,1.97483166,72786.0,72785.0,0.44056811]
[1730231221653,1.97483166,72786.0,72785.0,0.02518927]
[1730231221954,1.90613466,72786.0,72781.0,0.05457884]
[1730231222156,1.90613466,72786.0,72782.0,0.05457884]
[1730231222356,0.3608,72783.0,72782.0,0.05457884]
[1730231222556,0.068703,72780.0,72779.0,0.00206075]
[1730231222853,0.26673766,72780.0,72779.0,0.00206075]
[1730231223050,0.068702,72782.0,72780.0,0.068702]
[1730231223353,0.068703,72780.0,72779.0,0.02678483]
[1730231225550,0.068703,72780.0,72779.0,0.08159762]
[1730231226143,0.068703,72780.0,72779.0,0.02678483]
[1730231226358,0.068703,72780.0,72779.0,0.08159445]
[1730231226657,0.068703,72780.0,72779.0,0.02678483]
[1730231226855,0.068703,72780.0,72779.0,0.08159445]
[1730231227051,0.068703,72780.0,72779.0,0.02678483]
[1730231227052,1.568703,72780.0,72779.0,0.02678483]
[1730231227253,1.76673766,72780.0,72779.0,0.02678483]
[1730231228356,1.76673766,72780.0,72779.0,0.09548883]
[1730231228553,1.5,72780.0,72779.0,0.09548883]
[1730231228855,1.5,72780.0,72779.0,0.29352349]
[1730231229154,1.5,72780.0,72779.0,0.37094245]
[1730231229455,1.5,72780.0,72779.0,0.60129295]
[1730231229756,1.5,72780.0,72779.0,0.51929109]
[1730231229953,1.3872723,72780.0,72779.0,0.51929109]
[1730231230154,0.3608,72797.0,72793.0,0.06869]
[1730231230360,0.3608,72797.0,72794.0,0.05478416]
[1730231230655,0.3608,72797.0,72795.0,0.12347216]
[1730231231054,1.5,72796.0,72795.0,0.12347216]
[1730231231260,1.5,72796.0,72795.0,0.05478416]
[1730231231445,1.5,72796.0,72794.0,0.04109024]
[1730231231446,1.91212,72796.0,72794.0,0.04109024]
[1730231231649,1.91212,72796.0,72790.0,0.05478416]
[1730231231650,0.2158,72795.0,72790.0,0.04109024]
[1730231231855,0.3608,72791.0,72790.0,0.068694]
[1730231232258,0.429493,72791.0,72790.0,0.068694]
[1730231232456,0.429493,72791.0,72790.0,0.09332554]
[1730231232957,1.929493,72791.0,72790.0,0.09332554]
[1730231233354,1.929493,72791.0,72790.0,0.13441517]
[1730231234254,1.8608,72791.0,72790.0,0.13441517]
[1730231234457,1.8608,72791.0,72790.0,0.13441876]
[1730231234656,1.8608,72791.0,72790.0,0.09332554]
[1730231235255,1.5,72791.0,72790.0,0.1481097]
[1730231235456,1.568693,72791.0,72790.0,0.09332554]
[1730231236161,1.929493,72791.0,72790.0,0.02463154]
[1730231236459,1.929493,72791.0,72787.0,0.12348636]
[1730231236460,0.068696,72788.0,72787.0,0.068696]
[1730231238360,0.068697,72787.0,72785.0,0.05479927]
[1730231238551,0.19803466,72786.0,72767.0,0.0684802]
[1730231238748,0.068716,72766.0,72764.0,0.0684802]
[1730231238954,1.568717,72765.0,72763.0,0.068719]
[1730231239257,1.568717,72765.0,72759.0,0.3608]
[1730231239258,1.5,72765.0,72759.0,0.3608]
[1730231239451,1.5,72765.0,72764.0,0.068718]
[1730231240859,1.5,72765.0,72759.0,0.3608]
[1730231241059,0.26675666,72760.0,72759.0,0.02516314]
[1730231241359,0.068726,72756.0,72746.0,0.0684802]
[1730231241658,0.3608,72759.0,72748.0,0.19803466]
[1730231241850,0.068726,72756.0,72750.0,0.068731]
[1730231242050,0.068726,72756.0,72747.0,0.3608]
[1730231242453,0.13206217,72756.0,72753.0,0.068728]
[1730231242660,0.13206217,72756.0,72755.0,0.068727]
[1730231242953,1.5,72756.0,72755.0,0.068727]
[1730231244459,1.5,72756.0,72751.0,0.06873]
[1730231244661,0.068727,72755.0,72749.0,0.13206217]
[1730231244862,0.068727,72755.0,72751.0,0.06873]
[1730231245456,0.068727,72755.0,72752.0,0.068729]
[1730231245651,0.068728,72754.0,72747.0,0.38517594]
[1730231245857,0.068733,72748.0,72747.0,0.02437594]
[1730231246059,0.068733,72748.0,72739.0,0.3608]
[1730231246360,0.3608,72751.0,72739.0,0.429542]
[1730231246361,0.13206217,72747.0,72739.0,0.429542]
[1730231246565,1.5,72740.0,72739.0,0.3608]
[1730231246955,1.5,72740.0,72739.0,0.56160417]
[1730231248172,1.5,72740.0,72739.0,0.58639918]
[1730231249663,1.568741,72740.0,72739.0,0.38559501]
[1730231250167,2.11324317,72740.0,72739.0,0.38559501]
[1730231252080,1.568741,72740.0,72739.0,0.38559501]
[1730231253972,1.47791376,72740.0,72739.0,0.58639918]
[1730231254177,0.3608,72751.0,72750.0,0.068731]
[1730231254562,0.3608,72751.0,72750.0,0.20079317]
[1730231254766,0.3608,72759.0,72750.0,0.20079317]
[1730231254965,0.3608,72759.0,72756.0,0.068726]
[1730231255374,0.3608,72773.0,72767.0,0.068715]
[1730231255569,1.5,72772.0,72767.0,0.068715]
[1730231255876,1.5,72772.0,72766.0,0.13206217]
[1730231256175,1.5,72772.0,72771.0,0.068712]
[1730231257574,1.5,72772.0,72764.0,0.068718]
[1730231257781,1.5,72772.0,72760.0,0.3608]
[1730231257782,0.068713,72771.0,72767.0,0.068715]
[1730231258377,0.068713,72771.0,72760.0,0.3608]
[1730231258576,0.068713,72771.0,72768.0,0.068714]
[1730231258877,0.068713,72770.0,72764.0,0.068718]
[1730231259279,0.068713,72770.0,72766.0,0.068715]
[1730231259470,0.068713,72770.0,72767.0,0.068715]
[1730231259669,0.068713,72770.0,72760.0,0.3608]
[1730231259670,1.5008,72772.0,72768.0,0.19803412]
[1730231259977,1.5,72772.0,72771.0,0.068712]
[1730231262578,0.36286189,72788.0,72772.0,0.06871]
[1730231262772,0.36286189,72788.0,72786.0,0.068697]
[1730231263083,0.3608,72795.0,72787.0,0.068697]
[1730231263284,0.42948,72805.0,72800.0,0.068684]
[1730231263472,1.5,72801.0,72800.0,0.26671812]
[1730231264679,1.5,72801.0,72794.0,0.19803412]
[1730231264872,1.5,72801.0,72791.0,0.12208]
[1730231265070,1.5,72801.0,72789.0,0.47332812]
[1730231265381,1.5,72801.0,72791.0,0.068692]
[1730231265683,0.068687,72798.0,72794.0,0.19803412]
[1730231265870,0.3608,72799.0,72794.0,0.19803412]
[1730231266171,0.3608,72799.0,72788.0,0.3608]
[1730231266172,0.068693,72791.0,72788.0,0.3608]
[1730231266884,1.5,72789.0,72788.0,0.3608]
[1730231267383,0.3608,72799.0,72788.0,1.21616561]
[1730231267579,0.3608,72799.0,72798.0,0.26672012]
[1730231268370,1.8608,72799.0,72798.0,0.26672012]
[1730231271586,1.8608,72799.0,72794.0,0.12204]
[1730231272085,1.8608,72799.0,72794.0,0.190729]
[1730231272281,1.8608,72799.0,72794.0,0.12204]
[1730231272477,1.8608,72799.0,72795.0,0.068689]
[1730231272878,1.8608,72799.0,72798.0,0.26672012]
[1730231274282,1.8608,72799.0,72794.0,0.12204]
[1730231274486,0.068695,72796.0,72789.0,0.068701]
[1730231274695,0.068695,72797.0,72790.0,0.0687]
[1730231274983,0.3608,72799.0,72797.0,0.068694]
[1730231275187,0.3608,72799.0,72796.0,0.19803412]
[1730231275383,1.5,72797.0,72796.0,0.19803412]
[1730231277684,1.5,72797.0,72796.0,0.26672912]
[1730231278578,1.5,72797.0,72796.0,0.068695]
[1730231280885,1.568694,72797.0,72796.0,0.02426289]
[1730231281087,1.568694,72797.0,72781.0,0.3608]
[1730231281088,1.980814,72797.0,72781.0,0.3608]
[1730231281286,0.3608,72788.0,72787.0,0.068703]
[1730231281483,0.1957,72798.0,72787.0,0.13197779]
[1730231281790,0.1957,72798.0,72780.0,0.3608]
[1730231281791,0.3608,72793.0,72792.0,0.20067679]
[1730231282290,1.5,72793.0,72792.0,0.20067679]
[1730231283490,0.3608,72799.0,72795.0,0.068696]
[1730231283889,1.5,72798.0,72792.0,0.13197779]
[1730231284193,0.429498,72793.0,72792.0,0.02414707]
[1730231284386,0.429498,72793.0,72770.0,0.13403882]
[1730231284589,0.429507,72784.0,72770.0,0.00206103]
[1730231284789,1.5,72783.0,72774.0,0.19803166]
[1730231284999,1.5,72783.0,72778.0,0.068711]
[1730231285190,1.5,72783.0,72772.0,0.38511288]
[1730231285383,0.068717,72773.0,72772.0,0.38511288]
[1730231285594,0.068713,72777.0,72772.0,0.38511288]
[1730231286192,1.5,72773.0,72772.0,0.38511288]
[1730231286383,1.5,72773.0,72772.0,0.45383088]
[1730231286892,1.5,72773.0,72772.0,0.09303088]
[1730231287285,2.17898866,72773.0,72772.0,0.02431288]
[1730231287495,2.11027166,72773.0,72770.0,0.00206103]
[1730231287700,0.3608,72771.0,72770.0,0.00206103]
[1730231288396,0.429518,72771.0,72770.0,0.00206103]
[1730231288593,0.429518,72771.0,72767.0,0.068722]
[1730231288594,0.841758,72771.0,72747.0,0.068741]
[1730231288790,0.841758,72771.0,72756.0,0.068732]
[1730231288791,0.19803166,72757.0,72756.0,0.068732]
[1730231289494,0.26676166,72759.0,72754.0,0.38601435]
[1730231289696,0.55883166,72759.0,72756.0,0.068733]
[1730231289891,0.55883166,72759.0,72758.0,0.068731]
[1730231290192,0.3608,72759.0,72758.0,0.068731]
[1730231290396,0.3608,72759.0,72756.0,0.02506087]
[1730231290397,0.55883166,72759.0,72756.0,0.02506087]
[1730231290698,0.19803166,72757.0,72746.0,0.068742]
[1730231290994,0.19803166,72750.0,72735.0,0.1994]
[1730231291198,0.3608,72753.0,72729.0,0.19803166]
[1730231291199,0.19803166,72744.0,72740.0,0.068748]
[1730231291394,0.19803166,72744.0,72725.0,0.2075]
[1730231291395,0.068746,72742.0,72741.0,0.02670442]
[1730231291590,0.21,72743.0,72741.0,0.02670442]
[1730231291997,1.5,72742.0,72741.0,0.02670442]
[1730231292193,1.568746,72742.0,72741.0,0.02670442]
[1730231294608,1.5,72742.0,72741.0,0.02670442]
[1730231294797,1.5,72742.0,72741.0,0.09338953]
[1730231297706,0.3608,72747.0,72741.0,0.02464253]
[1730231297900,0.3608,72747.0,72732.0,0.3608]
[1730231297901,0.3608,72747.0,72746.0,0.068742]
[1730231301005,0.3608,72747.0,72738.0,0.3608]
[1730231301194,0.19803166,72741.0,72739.0,0.068748]
[1730231301505,0.55883166,72747.0,72741.0,0.068746]
[1730231301703,0.62757266,72747.0,72741.0,0.068746]
[1730231302808,0.55883166,72747.0,72741.0,0.068746]
[1730231303802,1.5,72746.0,72742.0,0.068745]
[1730231304002,1.5,72746.0,72738.0,0.3608]
[1730231304306,1.568742,72746.0,72742.0,0.068745]
[1730231304614,1.568742,72746.0,72743.0,0.068744]
[1730231305112,1.568742,72746.0,72738.0,0.38570145]
[1730231305113,0.068743,72745.0,72738.0,0.38570145]
[1730231305302,0.068743,72745.0,72740.0,0.068748]
[1730231305612,0.068743,72745.0,72741.0,0.068746]
[1730231306109,0.068745,72744.0,72741.0,0.068746]
[1730231306408,0.19803166,72742.0,72738.0,0.38570145]
[1730231306615,0.068748,72740.0,72738.0,0.38570145]
[1730231306911,0.1320987,72742.0,72738.0,0.38570145]
[1730231307210,0.3608,72739.0,72738.0,0.02490145]
[1730231307512,0.3608,72739.0,72723.0,9.73e-05]
[1730231307513,0.068774,72712.0,72697.0,0.12322748]
[1730231307715,0.068776,72710.0,72691.0,0.41523948]
[1730231307909,0.1320987,72692.0,72691.0,0.3608]
[1730231308603,1.5,72692.0,72691.0,0.429594]
[1730231309209,1.5,72692.0,72691.0,0.45437781]
[1730231310804,1.5,72692.0,72691.0,0.09357781]
[1730231312615,1.5,72692.0,72691.0,0.02478381]
[1730231312806,1.5,72692.0,72685.0,0.068793]
[1730231313010,0.19826102,72690.0,72671.0,0.5684]
[1730231313208,0.19826102,72678.0,72671.0,0.5684]
[1730231313409,0.19826102,72678.0,72677.0,0.4296]
[1730231313815,1.69826102,72678.0,72677.0,0.4296]
[1730231314416,1.69826102,72678.0,72677.0,0.0688]
[1730231314714,1.69826102,72678.0,72677.0,0.0248397]
[1730231314915,1.69826102,72678.0,72674.0,0.07086682]
[1730231315215,1.5,72678.0,72677.0,0.0688]
[1730231315407,0.19826102,72689.0,72677.0,0.3608]
[1730231315613,0.19826102,72684.0,72677.0,0.50872207]
[1730231315907,0.19826102,72684.0,72682.0,0.068795]
[1730231316318,0.19826102,72684.0,72677.0,0.36152]
[1730231316319,1.5,72683.0,72677.0,0.36152]
[1730231316515,1.5,72683.0,72681.0,0.068796]
[1730231317017,1.5,72683.0,72682.0,0.068796]
[1730231317715,1.5,72683.0,72677.0,0.3608]
[1730231317913,0.19826102,72678.0,72677.0,0.3608]
[1730231318115,0.19826102,72685.0,72677.0,0.3608]
[1730231318313,0.068797,72681.0,72677.0,0.3608]
[1730231318513,1.5,72678.0,72677.0,0.3608]
[1730231319412,1.5,72678.0,72674.0,0.02636826]
[1730231319413,0.068802,72675.0,72674.0,0.02636826]
[1730231319629,0.26706302,72675.0,72674.0,0.02636826]
[1730231320115,1.76706302,72675.0,72674.0,0.02636826]
[1730231321309,1.568802,72675.0,72674.0,0.02636826]
[1730231321506,1.76706302,72675.0,72674.0,0.02636826]
[1730231321916,2.11106102,72675.0,72665.0,0.3608]
[1730231322122,0.55906102,72666.0,72653.0,0.3608]
[1730231322418,0.068819,72658.0,72653.0,0.3608]
[1730231322613,0.55906102,72660.0,72653.0,0.3608]
[1730231322821,0.55906102,72660.0,72649.0,0.1888]
[1730231322822,0.06882,72657.0,72649.0,0.5496]
[1730231323018,0.55906102,72660.0,72649.0,0.5496]
[1730231323215,0.068824,72653.0,72649.0,0.5496]
[1730231323613,0.19826102,72650.0,72649.0,0.02525658]
[1730231323817,0.19826102,72650.0,72639.0,0.3608]
[1730231323818,0.068836,72640.0,72639.0,0.3608]
[1730231324116,0.06883,72646.0,72641.0,0.068834]
[1730231324318,0.06883,72646.0,72642.0,0.3608]
[1730231324514,1.5,72643.0,72642.0,0.3608]
[1730231325015,0.55906102,72654.0,72642.0,0.3608]
[1730231325410,0.55906102,72654.0,72646.0,0.068829]
[1730231325611,0.55906102,72654.0,72642.0,0.3608]
[1730231325816,0.55906102,72654.0,72643.0,0.068833]
[1730231326013,1.5,72644.0,72643.0,0.068833]
[1730231326916,0.3608,72661.0,72644.0,0.068831]
[1730231327111,0.3608,72661.0,72650.0,0.3608]
[1730231327317,0.19826102,72660.0,72653.0,0.068823]
[1730231327719,0.19826102,72655.0,72650.0,0.3608]
[1730231328016,0.19826102,72655.0,72643.0,0.1981]
[1730231328017,0.19826102,72651.0,72643.0,0.1981]
[1730231328219,0.19826102,72646.0,72642.0,0.3608]
[1730231328425,0.19826102,72646.0,72643.0,0.068832]
[1730231329019,0.19826102,72651.0,72643.0,0.068833]
[1730231329217,0.19826102,72651.0,72642.0,0.3608]
[1730231329218,0.19826102,72651.0,72649.0,0.068827]
[1730231329614,0.19826102,72651.0,72642.0,0.3608]
[1730231329615,1.5,72654.0,72650.0,0.068825]
[1730231329822,1.5,72654.0,72620.0,0.3608]
[1730231329823,0.1375,72650.0,72620.0,0.3608]
[1730231330014,0.3608,72652.0,72614.0,0.3608]
[1730231330015,0.068859,72616.0,72614.0,0.3608]
[1730231330318,0.19826102,72621.0,72614.0,0.3608]
[1730231330525,0.62791102,72626.0,72614.0,0.3608]
[1730231330714,0.55906102,72626.0,72614.0,0.3608]
[1730231330911,0.19826102,72620.0,72614.0,0.3608]
[1730231331123,0.068857,72617.0,72614.0,0.38511001]
[1730231331322,0.19826102,72615.0,72609.0,0.3608]
[1730231331512,0.77392,72620.0,72602.0,0.02433651]
[1730231331513,0.068868,72606.0,72602.0,0.02433651]
[1730231331716,0.19826102,72605.0,72600.0,0.3608]
[1730231332022,0.19826102,72610.0,72600.0,0.3608]
[1730231332223,0.068865,72609.0,72600.0,0.3608]
[1730231332614,0.068867,72607.0,72600.0,0.3608]
[1730231332816,0.19826102,72610.0,72600.0,0.3608]
[1730231333026,0.19826102,72615.0,72600.0,0.3608]
[1730231333523,1.5,72609.0,72600.0,0.3608]
[1730231333724,1.5,72609.0,72601.0,0.068873]
[1730231334022,1.5,72609.0,72602.0,0.068871]
[1730231334212,0.19826102,72604.0,72600.0,0.38566211]
[1730231334632,0.19906102,72609.0,72600.0,0.38566211]
[1730231334814,0.19826102,72609.0,72601.0,0.068872]
[1730231335018,0.19826102,72609.0,72602.0,0.068871]
[1730231335322,0.3608,72614.0,72600.0,0.38566211]
[1730231335521,0.62791602,72620.0,72609.0,0.429664]
[1730231335718,0.0008,72617.0,72611.0,0.068863]
[1730231335919,0.55906102,72620.0,72611.0,0.068863]
[1730231336120,0.55906102,72620.0,72609.0,0.3608]
[1730231336522,0.068847,72628.0,72617.0,0.3608]
[1730231336721,0.3608,72629.0,72617.0,0.3608]
[1730231337025,0.00206701,72631.0,72626.0,0.19826102]
[1730231337423,0.00206701,72631.0,72630.0,0.3608]
[1730231337626,0.068833,72643.0,72630.0,0.3608]
[1730231337820,0.26709402,72643.0,72630.0,0.3608]
[1730231338513,0.19826102,72643.0,72630.0,0.3608]
[1730231338716,0.19826102,72643.0,72639.0,0.068836]
[1730231339125,0.26708902,72648.0,72639.0,0.068836]
[1730231339624,0.19826102,72648.0,72642.0,0.068833]
[1730231339927,0.3608,72650.0,72643.0,0.068833]
[1730231340129,0.19826102,72646.0,72643.0,0.068833]
[1730231340515,0.19826102,72646.0,72639.0,0.02418624]
[1730231340820,0.19826102,72641.0,72638.0,0.3608]
[1730231341625,0.19826102,72641.0,72638.0,0.02504658]
[1730231341626,0.068836,72639.0,72638.0,0.02504658]
[1730231341828,0.413,72639.0,72630.0,0.3608]
[1730231342124,0.19826102,72631.0,72630.0,0.3608]
[1730231342529,1.5008,72638.0,72630.0,0.3608]
[1730231342530,0.26710102,72636.0,72630.0,0.3608]
[1730231343124,0.19826102,72636.0,72630.0,0.3608]
[1730231343318,1.50084,72638.0,72630.0,0.3608]
[1730231343523,1.5,72638.0,72635.0,0.06884]
[1730231343719,1.5,72638.0,72637.0,0.068838]
[1730231344219,1.5,72638.0,72630.0,0.38619617]
[1730231344419,0.068846,72629.0,72611.0,0.068863]
[1730231344628,0.068846,72629.0,72610.0,0.3608]
[1730231344629,0.19826102,72614.0,72610.0,0.3608]
[1730231344825,0.26712202,72614.0,72610.0,0.3608]
[1730231345023,1.5,72613.0,72610.0,0.3608]
[1730231346332,0.19826102,72632.0,72612.0,0.19826102]
[1730231346524,0.19826102,72631.0,72616.0,0.429658]
[1730231346725,0.06885,72626.0,72617.0,0.068857]
[1730231346926,0.3608,72628.0,72616.0,0.3608]
[1730231347124,0.3608,72628.0,72621.0,0.068853]
[1730231347428,1.5,72625.0,72624.0,0.068851]
[1730231347727,0.00206656,72629.0,72623.0,0.3616]
[1730231347929,0.00206656,72629.0,72623.0,0.3608]
[1730231348123,1.5,72628.0,72623.0,0.3608]
[1730231348832,0.068848,72627.0,72623.0,0.3608]
[1730231349231,0.068849,72626.0,72623.0,0.3608]
[1730231349635,0.00206656,72629.0,72624.0,0.41308]
[1730231349926,0.068829,72647.0,72629.0,0.068846]
[1730231350233,0.04996998,72646.0,72636.0,0.3608]
[1730231350535,0.04996998,72645.0,72636.0,0.3608]
[1730231350724,0.3608,72648.0,72644.0,0.068832]
[1730231351035,0.55906102,72648.0,72636.0,0.3608]
[1730231351332,0.55906102,72648.0,72641.0,0.068834]
[1730231351628,0.55906102,72648.0,72636.0,0.3608]
[1730231351832,0.55906102,72648.0,72643.0,0.068832]
[1730231352035,1.5,72644.0,72643.0,0.068832]
[1730231352839,0.19826102,72668.0,72653.0,0.068823]
[1730231353027,0.19826102,72668.0,72643.0,0.99795627]
[1730231353028,0.05037448,72660.0,72659.0,0.068818]
[1730231353226,0.00598909,72660.0,72659.0,0.068818]
[1730231353427,0.3608,72672.0,72660.0,0.15536427]
[1730231353624,0.19826102,72689.0,72671.0,0.55906102]
[1730231353834,0.19826102,72689.0,72674.0,0.3608]
[1730231353835,1.5,72688.0,72674.0,0.3608]
[1730231354028,0.19826102,72683.0,72674.0,0.3608]
[1730231354437,0.19826102,72683.0,72676.0,0.068801]
[1730231354739,0.19826102,72683.0,72674.0,0.3608]
[1730231354740,0.19826102,72683.0,72677.0,0.0688]
[1730231354934,0.19826102,72678.0,72674.0,0.3608]
[1730231355138,0.19826102,72678.0,72677.0,0.0688]
[1730231355334,0.19826102,72678.0,72674.0,0.3608]
[1730231355335,0.068791,72687.0,72681.0,0.068796]
[1730231355634,0.19826102,72682.0,72679.0,0.068798]
[1730231356342,0.19826102,72682.0,72681.0,0.068797]
[1730231358333,0.26705702,72682.0,72676.0,0.068801]
[1730231358532,0.19826102,72677.0,72676.0,0.068801]
[1730231359440,0.19826102,72677.0,72671.0,0.02531479]
[1730231359637,0.3608,72685.0,72671.0,0.19826102]
[1730231359848,0.3608,72691.0,72681.0,0.3608]
[1730231360034,1.5,72690.0,72681.0,0.3608]
[1730231360239,1.5,72690.0,72689.0,0.068789]
[1730231360445,0.26702202,72719.0,72691.0,0.068787]
[1730231360745,0.068763,72717.0,72703.0,0.19826102]
[1730231360931,1.5,72711.0,72710.0,0.26703002]
[1730231361131,1.5,72711.0,72710.0,0.068769]
[1730231362743,0.3608,72721.0,72716.0,0.068763]
[1730231363238,1.5,72720.0,72716.0,0.068763]
[1730231363445,1.5,72720.0,72708.0,0.3608]
[1730231363646,1.5,72720.0,72719.0,0.068761]
[1730231364339,0.00206352,72727.0,72726.0,0.068754]
[1730231364545,0.55906102,72746.0,72726.0,0.19826102]
[1730231364843,0.068743,72738.0,72731.0,0.3608]
[1730231365340,1.5,72732.0,72731.0,0.3608]
[1730231365937,1.568748,72732.0,72731.0,0.3608]
[1730231366644,1.5,72732.0,72731.0,0.3608]
[1730231367044,1.5,72732.0,72731.0,0.385223]
[1730231367240,1.5,72732.0,72731.0,0.453972]
[1730231367845,1.5,72732.0,72731.0,0.65223302]
[1730231368041,1.5,72732.0,72731.0,0.453972]
[1730231369035,1.5,72732.0,72731.0,0.385223]
[1730231369236,1.568748,72732.0,72722.0,0.3608]
[1730231369441,0.26701802,72723.0,72722.0,0.3608]
[1730231370346,1.76701802,72723.0,72722.0,0.3608]
[1730231370543,1.5,72723.0,72722.0,0.3608]
[1730231370849,1.5,72723.0,72722.0,0.429558]
[1730231371645,1.5,72723.0,72722.0,0.45397519]
[1730231372042,1.5,72723.0,72722.0,0.38521719]
[1730231372645,1.5,72723.0,72716.0,0.00206251]
[1730231372943,0.068763,72717.0,72716.0,0.00206251]
[1730231373151,0.068775,72704.0,72687.0,0.068791]
[1730231373343,0.19826102,72692.0,72689.0,0.068788]
[1730231373539,0.3608,72696.0,72690.0,0.068788]
[1730231373745,0.3608,72696.0,72682.0,0.15816015]
[1730231373746,1.5,72691.0,72682.0,0.15816015]
[1730231373951,1.5,72691.0,72681.0,0.38580905]
[1730231374348,1.568788,72691.0,72682.0,0.15816015]
[1730231374545,1.568788,72691.0,72681.0,0.38580905]
[1730231374546,0.068793,72685.0,72681.0,0.38580905]
[1730231374738,0.19826102,72682.0,72681.0,0.38580905]
[1730231374940,0.26705702,72682.0,72681.0,0.38580905]
[1730231375351,0.3608,72687.0,72681.0,0.38580905]
[1730231375552,1.5,72682.0,72681.0,0.38580905]
[1730231375946,1.5,72682.0,72681.0,0.45460605]
[1730231376858,0.068788,72691.0,72681.0,0.45460605]
[1730231377055,0.068788,72691.0,72682.0,0.068796]
[1730231377254,0.27573501,72709.0,72689.0,0.25067404]
[1730231377255,0.3608,72704.0,72689.0,0.25067404]
[1730231377450,1.5,72703.0,72702.0,0.068777]
[1730231377758,0.00206401,72709.0,72700.0,0.30563799]
[1730231378155,1.50206401,72709.0,72700.0,0.30563799]
[1730231378357,0.00206401,72709.0,72701.0,0.14669156]
[1730231378543,0.00206401,72709.0,72707.0,0.068772]
[1730231378855,0.00206401,72709.0,72708.0,0.068771]
[1730231381056,0.3608,72710.0,72703.0,0.3608]
[1730231381257,0.3608,72710.0,72705.0,0.068773]
[1730231382351,0.3608,72710.0,72706.0,0.068773]
[1730231382557,1.87512599,72712.0,72706.0,0.068773]